bitfinex-derivatives/quotes_SOLF0:USTF0_20251207
["timestamp","ask_amount","ask_price","bid_price","bid_amount"]
[1765111783366,64.29413753,132.97,132.96,3.23]
[1765111783962,0.05413753,132.97,132.96,3.23]
[1765111784168,64.26,133.0,132.97,3.23]
[1765111784361,64.26,133.0,132.99,3.23]
[1765111788073,64.66,133.0,132.98,10.36053628]
[1765111789968,0.05315377,133.01,132.99,3.35]
[1765111790170,0.45315377,133.01,132.99,3.35]
[1765111790569,0.45315377,133.01,132.99,10.3061686]
[1765111790968,0.05315377,133.01,133.0,3.35]
[1765111791966,0.05315377,133.01,133.0,10.3061686]
[1765111792761,64.64,133.05,133.0,10.3061686]
[1765111792762,0.4,133.04,133.01,3.35]
[1765111793662,0.4,133.04,133.01,3.40258882]
[1765111794669,0.4,133.04,133.01,10.35875742]
[1765111794969,0.4,133.04,133.02,3.35]
[1765111798569,0.4,133.04,133.01,10.18875742]
[1765111800670,0.4,133.04,133.01,3.23258882]
[1765111800974,64.64,133.05,133.01,3.23258882]
[1765111801169,64.64,133.05,133.02,3.18]
[1765111801574,0.4,133.04,133.01,7.00875742]
[1765111801767,0.4,133.04,133.01,0.05258882]
[1765111802671,0.4,133.04,133.01,3.23258882]
[1765111803373,64.24,133.03,133.01,3.23258882]
[1765111803774,64.64,133.03,133.01,3.23258882]
[1765111806079,0.4,133.02,133.01,0.05258882]
[1765111809976,64.64,133.02,133.01,0.05258882]
[1765111811780,0.4,133.04,133.01,3.23258882]
[1765111812078,64.62,133.03,133.01,3.23258882]
[1765111812376,64.22,133.03,133.01,3.23258882]
[1765111814378,64.62,133.03,133.01,3.23258882]
[1765111819777,0.4,133.06,133.02,3.33]
[1765111819975,0.4,133.05,133.03,3.38784639]
[1765111822979,0.4,133.05,133.03,0.05784639]
[1765111824283,64.6,133.05,133.03,3.38784639]
[1765111824978,0.4,133.04,133.03,0.05784639]
[1765111832784,0.4,133.03,132.99,12.67752745]
[1765111833791,0.4,133.01,133.0,0.0577867]
[1765111837586,64.56,133.01,133.0,0.0577867]
[1765111846818,0.4,133.0,132.96,12.67752745]
[1765111847906,0.4,132.98,132.97,0.0562871]
[1765111849318,0.45203017,132.99,132.97,3.2962871]
[1765111851006,64.63203017,132.99,132.97,3.2962871]
[1765111851213,0.05203017,132.99,132.97,3.2962871]
[1765111851413,0.05203017,132.99,132.97,10.0638871]
[1765111851604,0.05203017,132.99,132.98,3.24]
[1765111861631,64.18,133.01,132.98,3.24]
[1765111861829,7.165,133.03,132.99,3.09]
[1765111862727,0.05517988,133.02,133.0,3.14407275]
[1765111862927,0.45517988,133.02,133.0,3.14407275]
[1765111863626,0.45517988,133.02,133.0,0.05407275]
[1765111864726,0.45517988,133.02,133.0,3.14407275]
[1765111865529,0.4,133.01,133.0,0.05407275]
[1765111870134,0.4,133.01,133.0,0.00407275]
[1765111878935,64.58,133.01,133.0,0.00407275]
[1765111884332,66.08,133.01,133.0,0.00407275]
[1765111886834,73.10207463,133.01,133.0,0.00407275]
[1765111887042,88.65,133.01,133.0,0.00407275]
[1765111887233,98.07610819,133.01,133.0,0.00407275]
[1765111888342,88.65,133.01,133.0,0.00407275]
[1765111891042,0.35,132.92,132.89,3.03]
[1765111891243,64.2,132.91,132.89,3.03]
[1765111891544,64.55,132.91,132.89,3.03]
[1765111891742,0.35,132.9,132.86,3.03]
[1765111891944,0.0490077,132.89,132.88,3.03]
[1765111896142,7.1714077,132.89,132.87,3.08302833]
[1765111896334,64.22,132.88,132.87,3.08302833]
[1765111900645,7.123,132.87,132.84,3.03]
[1765111901046,0.35,132.86,132.84,3.03]
[1765111901242,64.22,132.85,132.84,3.03]
[1765111902946,10.0245,132.84,132.77,16.12532745]
[1765111903141,3.25,132.84,132.77,6.7778]
[1765111904148,0.05509099,132.82,132.79,0.04785977]
[1765111904351,64.24,132.81,132.79,0.04785977]
[1765111904951,64.24,132.81,132.8,3.03]
[1765111905553,0.05509099,132.82,132.8,4.53]
[1765111905744,54.16,132.81,132.8,3.03]
[1765111905949,64.29509099,132.82,132.8,3.03]
[1765111906154,64.29509099,132.82,132.8,4.53]
[1765111906359,64.29509099,132.82,132.8,1.5]
[1765111908458,64.29509099,132.82,132.79,0.04785977]
[1765111910056,0.05509099,132.82,132.79,1.54785977]
[1765111910859,0.05509099,132.82,132.79,8.32465977]
[1765111914259,0.05509099,132.82,132.8,6.7763]
[1765111914460,0.05509099,132.82,132.8,8.2763]
[1765111914663,64.26,132.86,132.8,8.2763]
[1765111914863,64.26,132.86,132.8,6.7763]
[1765111915057,64.26,132.86,132.81,6.7758]
[1765111915762,0.05284843,132.85,132.82,0.05552106]
[1765111916957,0.05284843,132.85,132.82,6.83082106]
[1765111918562,3.37,132.84,132.82,0.05552106]
[1765111918956,3.42284843,132.85,132.82,0.05552106]
[1765111919865,0.05284843,132.85,132.82,0.05552106]
[1765111920268,3.16284843,132.85,132.82,0.05552106]
[1765111920766,9.93704843,132.85,132.82,0.05552106]
[1765111921067,3.11,132.84,132.82,0.05552106]
[1765111922863,9.8848,132.84,132.82,0.05552106]
[1765111923065,3.11,132.83,132.82,0.05552106]
[1765111924071,67.42284843,132.85,132.82,0.05552106]
[1765111925964,64.31284843,132.85,132.82,0.05552106]
[1765111926170,0.05284843,132.85,132.82,0.05552106]
[1765111926372,3.16284843,132.85,132.82,0.05552106]
[1765111926671,0.05284843,132.85,132.82,0.05552106]
[1765111929069,3.16284843,132.85,132.82,0.05552106]
[1765111938379,3.16284843,132.85,132.82,9.40304851]
[1765111945286,3.16284843,132.85,132.83,9.34752745]
[1765111954087,0.05284843,132.85,132.84,9.34752745]
[1765111955882,3.18284843,132.85,132.84,9.34752745]
[1765111956687,3.18284843,132.85,132.83,9.34752745]
[1765111957192,3.18284843,132.85,132.84,9.34752745]
[1765111957393,3.18284843,132.85,132.83,9.34752745]
[1765111960294,3.18284843,132.85,132.84,9.34752745]
[1765111962999,3.18284843,132.85,132.83,9.34752745]
[1765111966000,0.05284843,132.85,132.83,9.34752745]
[1765111966194,0.05284843,132.85,132.83,14.03799424]
[1765111967504,0.05284843,132.85,132.83,20.81279424]
[1765111974003,0.05284843,132.85,132.84,14.03799424]
[1765111977307,3.31,132.9,132.86,6.7733]
[1765111977612,3.31,132.92,132.89,9.36416161]
[1765111978212,3.31,132.92,132.88,9.36416161]
[1765111978406,3.36166455,132.91,132.89,0.05011999]
[1765111981613,0.05166455,132.91,132.89,9.4142816]
[1765111982507,3.41166455,132.91,132.89,9.4142816]
[1765111982713,0.05166455,132.91,132.89,16.1858816]
[1765111982910,0.05166455,132.91,132.9,9.36416161]
[1765111984218,0.05166455,132.91,132.89,16.1858816]
[1765111990223,0.05166455,132.91,132.89,6.82171999]
[1765111990817,0.05166455,132.91,132.89,16.1858816]
[1765111994327,0.05166455,132.91,132.89,6.82171999]
[1765111996718,3.41166455,132.91,132.89,6.82171999]
[1765112005134,3.41166455,132.91,132.89,0.05011999]
[1765112026255,10.18276455,132.91,132.89,0.05011999]
[1765112026553,3.1,132.9,132.89,0.05011999]
[1765112027448,67.37166455,132.91,132.89,0.05011999]
[1765112027953,3.35,132.9,132.89,0.05011999]
[1765112029649,3.35,132.9,132.89,9.4142816]
[1765112030743,3.35,132.9,132.89,0.05011999]
[1765112032256,3.35,132.9,132.89,9.4142816]
[1765112033058,3.35,132.9,132.89,0.05011999]
[1765112033260,3.35,132.9,132.89,9.4142816]
[1765112040160,3.29166455,132.91,132.89,9.4142816]
[1765112042356,0.05166455,132.91,132.9,9.36416161]
[1765112042556,0.05166455,132.91,132.89,20.85991423]
[1765112042765,0.05166455,132.91,132.9,9.34638572]
[1765112045467,0.05166455,132.91,132.89,20.85991423]
[1765112046667,0.05166455,132.91,132.9,9.34662237]
[1765112049370,3.29166455,132.91,132.9,9.34662237]
[1765112058879,3.29166455,132.91,132.89,9.39674236]
[1765112061781,3.29166455,132.91,132.89,0.05011999]
[1765112069198,10.06276455,132.91,132.89,0.05011999]
[1765112069898,3.18,132.9,132.89,0.05011999]
[1765112078010,3.23166455,132.91,132.89,0.05011999]
[1765112097020,3.23166455,132.91,132.89,9.39674236]
[1765112098722,0.05166455,132.91,132.9,9.34662237]
[1765112098928,67.3,132.95,132.9,14.03799424]
[1765112099227,3.12,132.94,132.92,9.34060353]
[1765112099917,3.16854907,132.94,132.92,9.39402663]
[1765112102727,3.16854907,132.94,132.92,0.0534231]
[1765112115337,9.93814907,132.94,132.92,0.0534231]
[1765112115538,3.12,132.93,132.92,0.0534231]
[1765112115746,3.12,132.93,132.89,9.34060353]
[1765112115948,3.12,132.93,132.88,9.34060353]
[1765112116744,3.12,132.91,132.89,0.05109846]
[1765112116944,3.12,132.9,132.89,0.05109846]
[1765112118049,3.12,132.9,132.89,9.39170199]
[1765112119143,3.12,132.9,132.89,0.05109846]
[1765112142166,3.12,132.9,132.86,9.34060353]
[1765112143063,3.04,132.88,132.87,0.05519254]
[1765112152070,3.04,132.88,132.83,14.09799424]
[1765112152269,3.12,132.86,132.83,14.09799424]
[1765112153068,3.17790157,132.86,132.83,14.15287224]
[1765112153259,3.17790157,132.86,132.83,0.054878]
[1765112154383,9.95160157,132.86,132.83,0.054878]
[1765112154667,3.12,132.85,132.83,0.054878]
[1765112160279,3.12,132.84,132.83,0.054878]
[1765112161773,67.3,132.84,132.83,0.054878]
[1765112173391,3.35,132.83,132.79,0.06]
[1765112174184,10.1252,132.83,132.79,0.06]
[1765112174386,0.05783844,132.82,132.81,0.06]
[1765112180399,3.25783844,132.82,132.81,0.06]
[1765112184998,0.05783844,132.82,132.81,0.06]
[1765112185195,3.25783844,132.82,132.81,0.06]
[1765112191511,3.25783844,132.82,132.8,9.42403411]
[1765112194220,3.25783844,132.82,132.81,9.32517335]
[1765112194622,3.25783844,132.82,132.8,9.42403411]
[1765112195523,3.25783844,132.82,132.81,9.32517335]
[1765112195823,3.25783844,132.82,132.8,9.42403411]
[1765112196320,3.25783844,132.82,132.81,9.32517335]
[1765112202229,3.25783844,132.82,132.81,9.37517335]
[1765112203121,3.25783844,132.82,132.8,14.136855]
[1765112210336,3.25783844,132.82,132.81,0.06]
[1765112214536,3.25783844,132.82,132.8,14.146855]
[1765112217631,0.05783844,132.82,132.81,0.06]
[1765112217839,3.16,132.88,132.81,0.06]
[1765112218135,3.16,132.88,132.85,9.37540239]
[1765112218830,3.21357149,132.88,132.85,9.42512214]
[1765112222444,3.21357149,132.88,132.85,0.04971975]
[1765112232350,9.98627149,132.88,132.85,0.04971975]
[1765112232656,3.36,132.86,132.85,0.04971975]
[1765112236054,3.36,132.86,132.82,9.47540239]
[1765112236854,70.9332,132.87,132.83,0.05215334]
[1765112236855,3.36,132.84,132.83,0.05215334]
[1765112241859,3.36,132.84,132.83,0.00215334]
[1765112261676,67.54,132.84,132.83,0.00215334]
[1765112335051,3.36,132.84,132.83,0.00215334]
[1765112335259,67.52,132.84,132.83,0.00215334]
[1765112359975,3.36,132.84,132.83,0.00215334]
[1765112360170,67.5,132.84,132.83,0.00215334]
[1765112366577,6.83165837,132.85,132.83,0.16215334]
[1765112366782,64.14,132.84,132.83,9.53755573]
[1765112368076,64.19357747,132.85,132.84,2.71]
[1765112369578,0.05357747,132.85,132.84,2.71]
[1765112369974,0.05357747,132.85,132.84,16.77310358]
[1765112372281,0.05357747,132.85,132.84,2.71]
[1765112378096,0.05357747,132.85,132.84,12.05248612]
[1765112391813,0.05357747,132.85,132.84,2.71]
[1765112393115,67.26,132.88,132.84,2.71]
[1765112393116,3.14,132.9,132.87,2.71]
[1765112394308,3.18882466,132.9,132.87,2.76741586]
[1765112394514,3.18882466,132.9,132.87,9.54011586]
[1765112400417,3.18882466,132.9,132.88,2.71]
[1765112400616,0.04882466,132.9,132.88,9.4823]
[1765112400812,0.04882466,132.9,132.89,2.71]
[1765112403224,0.04882466,132.9,132.89,12.04308371]
[1765112404124,0.04882466,132.9,132.89,2.71]
[1765112409930,0.04882466,132.9,132.88,9.33308371]
[1765112409931,3.13882466,132.9,132.88,12.04308371]
[1765112410130,3.13882466,132.9,132.87,9.39049957]
[1765112410330,3.13882466,132.9,132.87,12.10049957]
[1765112411123,3.13882466,132.9,132.87,2.76741586]
[1765112411527,3.13882466,132.9,132.87,0.05741586]
[1765112412031,3.13882466,132.9,132.87,2.76741586]
[1765112412232,3.13882466,132.9,132.87,12.10049957]
[1765112414630,3.13882466,132.9,132.88,2.71]
[1765112416034,3.09,132.89,132.88,2.71]
[1765112416336,6.82052466,132.9,132.88,2.71]
[1765112416536,9.91052466,132.9,132.88,2.71]
[1765112417033,3.09,132.89,132.88,2.71]
[1765112421537,6.82052466,132.9,132.88,2.71]
[1765112421841,9.96052466,132.9,132.88,2.71]
[1765112424744,0.04882466,132.9,132.88,2.71]
[1765112425046,0.04882466,132.9,132.89,2.71]
[1765112428348,3.18882466,132.9,132.89,2.71]
[1765112435957,3.18882466,132.9,132.88,9.33308371]
[1765112436155,3.18882466,132.9,132.88,12.04308371]
[1765112436453,3.18882466,132.9,132.88,9.33308371]
[1765112436752,3.18882466,132.9,132.88,12.04308371]
[1765112436947,3.18882466,132.9,132.88,2.71]
[1765112440449,3.18882466,132.9,132.87,9.39049957]
[1765112440450,3.14,132.89,132.87,9.39049957]
[1765112441554,3.14,132.88,132.87,9.39049957]
[1765112448870,3.14,132.88,132.87,0.05741586]
[1765112450764,3.22,132.87,132.85,6.47598519]
[1765112450964,3.22,132.85,132.83,2.71]
[1765112451765,3.26993943,132.85,132.83,0.04800881]
[1765112452367,3.22,132.84,132.83,0.04800881]
[1765112453270,3.22,132.82,132.8,2.71]
[1765112453469,67.32,132.81,132.8,2.71]
[1765112453767,67.32,132.81,132.79,2.71]
[1765112453975,64.1,132.81,132.79,2.71]
[1765112454270,67.3766158,132.81,132.79,2.76515357]
[1765112455063,0.0566158,132.81,132.79,2.76515357]
[1765112460579,74.1137,132.86,132.8,2.66]
[1765112461279,3.06,132.85,132.8,2.66]
[1765112461788,0.05398264,132.84,132.82,2.66]
[1765112466381,3.06,132.9,132.82,2.66]
[1765112466681,67.18,132.9,132.82,2.66]
[1765112467279,3.06,132.89,132.82,2.66]
[1765112467480,0.04954165,132.87,132.85,2.66]
[1765112477586,0.04954165,132.87,132.85,9.4338]
[1765112477784,0.04954165,132.87,132.86,2.66]
[1765112484491,0.04954165,132.87,132.86,11.99152127]
[1765112497300,0.04954165,132.87,132.86,2.66]
[1765112500199,0.04954165,132.87,132.86,11.99152127]
[1765112501904,0.04954165,132.87,132.86,2.66]
[1765112502203,3.09954165,132.87,132.85,11.99152127]
[1765112502394,3.09954165,132.87,132.84,9.3800714]
[1765112502598,3.09954165,132.87,132.84,0.04855013]
[1765112503998,3.05,132.86,132.84,0.04855013]
[1765112504209,67.15,132.85,132.84,0.04855013]
[1765112515013,3.07,132.84,132.8,12.04152127]
[1765112515604,3.07,132.84,132.81,2.71]
[1765112516114,3.12296373,132.84,132.81,2.75753802]
[1765112517012,0.05296373,132.84,132.81,2.75753802]
[1765112517211,0.05296373,132.84,132.81,12.08905929]
[1765112517413,0.05296373,132.84,132.82,2.71]
[1765112520918,0.05296373,132.84,132.82,12.04152127]
[1765112521107,0.05296373,132.84,132.83,2.71]
[1765112522405,64.12,132.88,132.83,4.21]
[1765112522604,64.12,132.88,132.84,2.65]
[1765112523510,0.05579572,132.87,132.86,2.65]
[1765112535125,0.05579572,132.87,132.86,11.98152127]
[1765112537029,3.08,132.92,132.88,2.6]
[1765112537732,3.08,132.92,132.89,2.6]
[1765112538229,3.13445251,132.92,132.89,2.6544001]
[1765112538524,3.13445251,132.92,132.9,2.6]
[1765112539830,0.05445251,132.92,132.9,2.6]
[1765112540326,3.18445251,132.92,132.9,2.6]
[1765112541733,0.05445251,132.92,132.9,2.6]
[1765112541935,0.05445251,132.92,132.91,2.6]
[1765112543131,3.18445251,132.92,132.91,2.6]
[1765112547439,0.05445251,132.92,132.91,2.6]
[1765112549241,64.12,132.94,132.92,2.6]
[1765112550342,64.17077177,132.94,132.92,2.65606962]
[1765112554848,67.30077177,132.94,132.92,2.65606962]
[1765112557553,64.17077177,132.94,132.93,2.6]
[1765112558144,3.13,132.99,132.97,2.6]
[1765112558450,3.13,132.99,132.93,11.93152127]
[1765112558653,3.13,132.99,132.92,18.70162127]
[1765112558953,3.13,132.99,132.92,9.3701]
[1765112559153,0.04312341,132.97,132.94,2.65194468]
[1765112560544,0.04312341,132.97,132.94,9.42094468]
[1765112560744,0.04312341,132.97,132.95,2.6]
[1765112560949,3.17312341,132.97,132.95,2.6]
[1765112563847,0.04312341,132.97,132.95,2.6]
[1765112565553,3.17312341,132.97,132.95,2.6]
[1765112572063,0.04312341,132.97,132.95,2.6]
[1765112573262,3.07,133.01,132.96,2.6]
[1765112574058,3.07,133.01,132.98,2.6]
[1765112582566,3.07,133.01,132.97,2.63922261]
[1765112582762,3.07,133.01,132.97,0.04922261]
[1765112583168,3.07,133.01,132.97,2.63922261]
[1765112585367,3.07,133.01,132.97,0.04922261]
[1765112586472,67.21,133.0,132.97,0.04922261]
[1765112586770,3.13,132.99,132.97,0.04922261]
[1765112587372,3.13,132.99,132.97,2.63922261]
[1765112595084,3.13,132.99,132.97,0.04922261]
[1765112611105,67.25,132.98,132.97,0.04922261]
[1765112618911,3.17,132.98,132.97,2.62922261]
[1765112620813,3.17,132.98,132.97,0.04922261]
[1765112631719,3.2,132.97,132.95,9.33152127]
[1765112632823,3.24922261,132.97,132.95,9.38026326]
[1765112635824,67.3,132.96,132.95,9.38026326]
[1765112636220,3.2,132.96,132.95,9.38026326]
[1765112636526,67.3,132.96,132.95,9.38026326]
[1765112646027,3.3,132.95,132.94,9.34744836]
[1765112646232,3.3,132.95,132.91,17.25310358]
[1765112647133,3.3,132.93,132.92,0.05184127]
[1765112648634,3.3,132.93,132.92,3.24184127]
[1765112648827,3.35481132,132.94,132.92,3.24184127]
[1765112651535,3.35481132,132.94,132.92,0.05184127]
[1765112654237,3.3,132.93,132.92,0.05184127]
[1765112654439,3.3,132.93,132.87,17.25310358]
[1765112654628,3.3,132.93,132.87,3.19]
[1765112654828,3.3,132.91,132.87,3.19]
[1765112655024,3.3,132.89,132.87,3.19]
[1765112655430,3.35254118,132.89,132.87,3.24289177]
[1765112656833,3.35254118,132.89,132.87,0.05289177]
[1765112658534,3.35,132.88,132.87,0.05289177]
[1765112659836,3.35,132.85,132.81,3.1]
[1765112660028,3.35,132.84,132.81,3.1]
[1765112660839,3.40135884,132.84,132.81,3.15544817]
[1765112663037,67.54135884,132.84,132.81,3.15544817]
[1765112663434,3.35,132.83,132.81,3.15544817]
[1765112664536,3.35,132.83,132.81,0.05544817]
[1765112668545,67.51,132.82,132.81,0.05544817]
[1765112672141,3.35,132.83,132.81,3.15544817]
[1765112679452,64.23135884,132.84,132.82,3.1]
[1765112679642,67.58135884,132.84,132.82,3.1]
[1765112681858,3.40135884,132.84,132.82,9.8753]
[1765112683758,3.40135884,132.84,132.83,3.1]
[1765112688058,3.40135884,132.84,132.82,3.22]
[1765112689262,3.40135884,132.84,132.81,0.05544817]
[1765112689263,3.40135884,132.84,132.81,3.27544817]
[1765112691361,3.40135884,132.84,132.81,0.05544817]
[1765112693568,3.40135884,132.84,132.81,3.27544817]
[1765112695865,3.40135884,132.84,132.81,0.05544817]
[1765112698476,3.3,132.83,132.81,0.05544817]
[1765112704468,0.05135884,132.84,132.82,3.22]
[1765112706878,3.22135884,132.84,132.82,3.22]
[1765112716783,3.22135884,132.84,132.81,0.05544817]
[1765112716984,3.22135884,132.84,132.81,3.27544817]
[1765112720479,3.22135884,132.84,132.81,0.05544817]
[1765112721884,3.22135884,132.84,132.81,3.29544817]
[1765112726798,3.22135884,132.84,132.81,0.05544817]
[1765112726998,67.41,132.83,132.81,0.05544817]
[1765112727191,3.25,132.82,132.81,0.05544817]
[1765112734104,67.41,132.83,132.81,3.29544817]
[1765112735104,3.25,132.82,132.81,3.29544817]
[1765112735406,3.25,132.82,132.81,0.05544817]
[1765112743010,3.25,132.82,132.76,24.08170358]
[1765112743904,3.25,132.79,132.78,0.05370116]
[1765112744103,67.41,132.79,132.78,0.05370116]
[1765112745512,64.16,132.79,132.78,3.29370116]
[1765112745711,67.41,132.79,132.78,3.29370116]
[1765112745915,67.41,132.79,132.78,0.05370116]
[1765112746911,67.41,132.79,132.78,3.29370116]
[1765112747107,64.16,132.79,132.78,3.29370116]
[1765112747316,0.05025515,132.8,132.78,3.29370116]
[1765112747699,0.05025515,132.8,132.78,10.07100116]
[1765112747903,0.05025515,132.8,132.79,3.23]
[1765112761724,3.27,132.84,132.81,3.07]
[1765112762828,3.32661399,132.84,132.81,0.04786838]
[1765112765723,3.32661399,132.84,132.81,3.11786838]
[1765112766319,0.05661399,132.84,132.82,3.07]
[1765112770532,0.05661399,132.84,132.83,3.07]
[1765112778240,3.20661399,132.84,132.81,10.18366838]
[1765112778430,3.20661399,132.84,132.81,0.04786838]
[1765112778624,3.20661399,132.84,132.81,3.40786838]
[1765112779040,3.20661399,132.84,132.81,0.04786838]
[1765112783343,3.15,132.82,132.81,0.04786838]
[1765112795146,3.15,132.82,132.75,10.1388]
[1765112796144,3.15,132.79,132.77,0.05760381]
[1765112796447,3.15,132.78,132.77,3.41760381]
[1765112797147,67.31,132.79,132.77,3.41760381]
[1765112803647,3.15,132.78,132.77,3.41760381]
[1765112803848,3.15,132.78,132.77,0.05760381]
[1765112805349,67.31,132.78,132.77,3.41760381]
[1765112806253,3.15,132.78,132.77,3.41760381]
[1765112806658,0.05538096,132.8,132.79,3.36]
[1765112806957,3.15,132.86,132.8,3.36]
[1765112807759,0.05108063,132.84,132.82,3.13464376]
[1765112809461,0.05108063,132.84,132.82,9.90974376]
[1765112809675,0.05108063,132.84,132.83,3.08]
[1765112811756,3.41108063,132.84,132.82,6.82974376]
[1765112811960,3.41108063,132.84,132.82,3.13464376]
[1765112813863,0.05108063,132.84,132.82,3.13464376]
[1765112822967,3.16108063,132.84,132.82,0.05464376]
[1765112834277,0.05108063,132.84,132.82,3.39464376]
[1765112837079,0.05108063,132.84,132.83,3.34]
[1765112839689,3.37108063,132.84,132.83,3.34]
[1765112839880,3.37108063,132.84,132.82,0.05464376]
[1765112840287,3.37108063,132.84,132.82,3.13464376]
[1765112844789,3.37108063,132.84,132.82,0.05464376]
[1765112847690,3.37108063,132.84,132.82,3.13464376]
[1765112853097,3.37108063,132.84,132.82,0.05464376]
[1765112853593,3.32,132.83,132.82,0.05464376]
[1765112853789,8.71916614,132.83,132.82,0.05464376]
[1765112854190,3.32,132.83,132.82,0.05464376]
[1765112857089,67.5,132.83,132.82,0.05464376]
[1765112866704,3.32,132.81,132.78,3.08]
[1765112866897,3.32,132.81,132.76,3.08]
[1765112867598,3.11,132.79,132.77,0.05510679]
[1765112867801,67.31,132.78,132.77,0.05510679]
[1765112868898,67.31,132.78,132.77,3.13510679]
[1765112870706,64.2,132.78,132.77,3.13510679]
[1765112873211,67.31,132.78,132.77,3.13510679]
[1765112873712,67.31,132.78,132.77,0.05510679]
[1765112874814,67.31,132.78,132.77,3.18510679]
[1765112876115,67.31,132.78,132.77,0.05510679]
[1765112892332,67.37,132.78,132.77,3.18510679]
[1765112892536,67.37,132.78,132.77,0.05510679]
[1765112909349,3.07,132.77,132.72,6.7804]
[1765112909550,3.07,132.77,132.72,9.9304]
[1765112910048,3.07,132.77,132.73,3.15]
[1765112910454,3.07,132.75,132.74,0.05349984]
[1765112911647,3.07,132.75,132.74,3.20349984]
[1765112912840,3.12621822,132.76,132.74,3.20349984]
[1765112913046,3.12621822,132.76,132.74,9.98289984]
[1765112915947,0.05621822,132.76,132.75,3.15]
[1765112916850,3.12621822,132.76,132.75,3.15]
[1765112918948,3.12621822,132.76,132.74,0.05349984]
[1765112919152,3.12621822,132.76,132.74,3.20349984]
[1765112924665,0.05621822,132.76,132.74,3.20349984]
[1765112930068,0.05621822,132.76,132.74,9.98289984]
[1765112930770,0.05621822,132.76,132.75,3.34]
[1765112944385,3.11,132.81,132.77,3.29]
[1765112944685,3.11,132.83,132.77,3.29]
[1765112945091,3.11,132.83,132.8,3.29]
[1765112945386,3.16190029,132.83,132.8,3.3405926]
[1765112949286,3.16190029,132.83,132.8,0.0505926]
[1765112955306,3.11,132.82,132.75,10.0688]
[1765112955502,3.11,132.8,132.76,3.29]
[1765112955702,3.11,132.8,132.75,6.7788]
[1765112955903,3.11,132.8,132.75,10.0688]
[1765112956302,3.11,132.78,132.76,0.05073039]
[1765112978130,3.11,132.78,132.76,3.32073039]
[1765112978520,3.11,132.78,132.76,0.05073039]
[1765112985533,3.2,132.77,132.76,0.05073039]
[1765112992039,67.38,132.77,132.76,0.05073039]
[1765113003051,3.10874781,132.79,132.76,3.22073039]
[1765113003245,64.18,132.77,132.76,3.22073039]
[1765113006751,61.59473206,132.77,132.76,3.22073039]
[1765113006950,0.04874781,132.79,132.77,3.17]
[1765113008254,3.10874781,132.79,132.77,3.17]
[1765113014660,3.10874781,132.79,132.76,3.22073039]
[1765113015062,3.10874781,132.79,132.76,0.05073039]
[1765113016565,9.88604781,132.79,132.76,0.05073039]
[1765113016862,3.06,132.78,132.76,0.05073039]
[1765113020666,67.3,132.77,132.76,0.05073039]
[1765113028973,3.12,132.74,132.71,19.34947348]
[1765113029175,3.12,132.74,132.66,3.33]
[1765113029176,64.18,132.73,132.68,9.96618913]
[1765113029367,64.18,132.73,132.66,3.33]
[1765113029969,0.05563369,132.71,132.68,0.0568615]
[1765113032072,0.05563369,132.71,132.68,3.3868615]
[1765113040782,0.05563369,132.71,132.68,0.0568615]
[1765113041784,6.83693369,132.71,132.68,0.0568615]
[1765113042377,105.54313369,132.71,132.63,3.33]
[1765113042578,6.7825,132.69,132.63,3.33]
[1765113042779,64.2,132.68,132.63,3.33]
[1765113043380,0.04889297,132.67,132.64,3.38051166]
[1765113046192,0.04889297,132.67,132.64,0.05051166]
[1765113048790,6.7854,132.63,132.55,3.17]
[1765113048988,64.22,132.62,132.55,3.17]
[1765113049691,0.05466775,132.6,132.57,0.04838597]
[1765113054806,105.5883,132.58,132.5,3.17]
[1765113055099,64.3,132.57,132.5,3.17]
[1765113055488,71.0886,132.57,132.5,3.17]
[1765113055689,0.0551459,132.55,132.52,3.22752672]
[1765113056094,6.8446459,132.55,132.52,0.05752672]